[Event "Late-Titled-Tuesday-Blitz-March-19-2024"]
[Site "Chess.com"]
[Date "2024.03.19"]
[Round "6"]
[White "Sacbutt"]
[Black "LangesNasenhaar"]
[Result "0-1"]
[WhiteElo "2320"]
[BlackElo "2531"]
[TimeControl "180+1"]
[EndTime "15:06:06 PDT"]
[Termination "LangesNasenhaar won by resignation"]

1. e4 {[%clk 0:03:00.9]} 1... g6 {[%clk 0:02:59.6]} 2. c3 {[%clk 0:02:58.6]}
2... Bg7 {[%clk 0:02:59]} 3. d4 {[%clk 0:02:58.6]} 3... c6 {[%clk 0:02:57.7]} 4.
Bd3 {[%clk 0:02:54.9]} 4... d5 {[%clk 0:02:58]} 5. Nf3 {[%clk 0:02:53.4]} 5...
dxe4 {[%clk 0:02:57.5]} 6. Bxe4 {[%clk 0:02:53.8]} 6... Nf6 {[%clk 0:02:58.2]}
7. Bc2 {[%clk 0:02:53.2]} 7... O-O {[%clk 0:02:59.1]} 8. O-O {[%clk 0:02:52.9]}
8... Qc7 {[%clk 0:02:56.1]} 9. g3 {[%clk 0:02:46.1]} 9... Bg4 {[%clk 0:02:52.7]}
10. Qd3 {[%clk 0:02:41]} 10... Bf5 {[%clk 0:02:47.9]} 11. Qd1 {[%clk 0:02:39.5]}
11... Bxc2 {[%clk 0:02:46.4]} 12. Qxc2 {[%clk 0:02:40.4]} 12... c5 {[%clk
0:02:46.5]} 13. Bf4 {[%clk 0:02:36.6]} 13... Qb6 {[%clk 0:02:46.2]} 14. Nbd2
{[%clk 0:02:29.8]} 14... cxd4 {[%clk 0:02:44.9]} 15. Nxd4 {[%clk 0:02:29.1]}
15... Nd5 {[%clk 0:02:42.5]} 16. Ne2 {[%clk 0:02:10.1]} 16... e5 {[%clk
0:02:35.9]} 17. Nc4 {[%clk 0:02:04.2]} 17... Qe6 {[%clk 0:02:30.1]} 18. Bd2
{[%clk 0:01:59.3]} 18... Nc6 {[%clk 0:02:25.6]} 19. Ne3 {[%clk 0:01:53.1]} 19...
Nb6 {[%clk 0:02:22]} 20. b3 {[%clk 0:01:46.2]} 20... Rad8 {[%clk 0:02:20.4]} 21.
Rad1 {[%clk 0:01:45.2]} 21... h6 {[%clk 0:02:15.2]} 22. Rfe1 {[%clk 0:01:37.1]}
22... f5 {[%clk 0:02:14.8]} 23. f4 {[%clk 0:01:30.4]} 23... e4 {[%clk
0:02:13.5]} 24. c4 {[%clk 0:01:26]} 24... Kh7 {[%clk 0:02:02]} 25. Bc3 {[%clk
0:01:24.2]} 25... a5 {[%clk 0:01:41.4]} 26. Bxg7 {[%clk 0:01:20.9]} 26... Kxg7
{[%clk 0:01:42.3]} 27. Qc3+ {[%clk 0:01:19.8]} 27... Qf6 {[%clk 0:01:42]} 28.
Qxf6+ {[%clk 0:01:08.7]} 28... Kxf6 {[%clk 0:01:41.9]} 29. Nc3 {[%clk
0:01:04.2]} 29... Nd4 {[%clk 0:01:31.9]} 30. Ncd5+ {[%clk 0:01:00.5]} 30... Nxd5
{[%clk 0:01:31]} 31. Nxd5+ {[%clk 0:00:41]} 31... Rxd5 {[%clk 0:01:26.6]} 32.
cxd5 {[%clk 0:00:41.6]} 32... Nf3+ {[%clk 0:01:27]} 33. Kf2 {[%clk 0:00:41.5]}
33... Nxe1 {[%clk 0:01:25.8]} 34. Kxe1 {[%clk 0:00:38.7]} 34... Rc8 {[%clk
0:01:19.7]} 35. Rd2 {[%clk 0:00:33.3]} 35... Ke7 {[%clk 0:01:16.6]} 36. Ke2
{[%clk 0:00:32.7]} 36... Kd6 {[%clk 0:01:16.6]} 37. Ke3 {[%clk 0:00:28.3]} 37...
Rc5 {[%clk 0:01:16.6]} 38. Rb2 {[%clk 0:00:20.6]} 38... Rxd5 {[%clk 0:01:15.6]}
39. b4 {[%clk 0:00:20.9]} 39... Rd3+ {[%clk 0:01:12]} 40. Ke2 {[%clk 0:00:20.4]}
40... a4 {[%clk 0:01:12.3]} 41. b5 {[%clk 0:00:19.3]} 41... Kc5 {[%clk 0:01:00]}
42. b6 {[%clk 0:00:17.8]} 42... Rd6 {[%clk 0:00:45.9]} 43. Rc2+ {[%clk
0:00:17.3]} 43... Kxb6 {[%clk 0:00:45.8]} 44. Rc8 {[%clk 0:00:17.4]} 44... h5
{[%clk 0:00:44.5]} 45. Ra8 {[%clk 0:00:15.8]} 45... Kb5 {[%clk 0:00:44.5]} 46.
a3 {[%clk 0:00:14.8]} 46... Rd3 {[%clk 0:00:41.1]} 47. Rg8 {[%clk 0:00:15.2]}
47... Rxa3 {[%clk 0:00:40]} 48. Rxg6 {[%clk 0:00:15.7]} 48... Ra2+ {[%clk
0:00:40.5]} 49. Ke3 {[%clk 0:00:16.2]} 49... a3 {[%clk 0:00:40.6]} 50. Rg5
{[%clk 0:00:16.4]} 50... Rxh2 {[%clk 0:00:33.3]} 51. Rxf5+ {[%clk 0:00:16.6]}
51... Kb4 {[%clk 0:00:33.9]} 52. Rf7 {[%clk 0:00:15.4]} 52... b5 {[%clk
0:00:32.6]} 53. Kxe4 {[%clk 0:00:13.5]} 53... a2 {[%clk 0:00:31.1]} 54. Ra7
{[%clk 0:00:13]} 54... Kb3 {[%clk 0:00:31.3]} 55. f5 {[%clk 0:00:12.6]} 55... b4
{[%clk 0:00:26.7]} 56. f6 {[%clk 0:00:09.2]} 56... Rf2 {[%clk 0:00:25.8]} 57. f7
{[%clk 0:00:09.1]} 57... Kb2 {[%clk 0:00:25.7]} 58. Ke5 {[%clk 0:00:04.6]} 58...
b3 {[%clk 0:00:24.8]} 59. Ke6 {[%clk 0:00:04.7]} 59... a1=Q {[%clk 0:00:24.4]}
60. Rxa1 {[%clk 0:00:03.1]} 60... Kxa1 {[%clk 0:00:24.6]} 61. g4 {[%clk
0:00:02.4]} 61... hxg4 {[%clk 0:00:24.1]} 0-1

[Event "Late-Titled-Tuesday-Blitz-March-19-2024"]
[Site "Chess.com"]
[Date "2024.03.19"]
[Round "6"]
[White "gorgeous1083"]
[Black "cristiano78"]
[Result "1/2-1/2"]
[WhiteElo "2063"]
[BlackElo "2244"]
[TimeControl "180+1"]
[EndTime "15:06:07 PDT"]
[Termination "Game drawn by repetition"]

1. d4 {[%clk 0:03:00.9]} 1... Nf6 {[%clk 0:02:18.8]} 2. c4 {[%clk 0:03:00.3]}
2... g6 {[%clk 0:02:19.1]} 3. Nc3 {[%clk 0:02:59.5]} 3... Bg7 {[%clk 0:02:18.8]}
4. e4 {[%clk 0:02:58.4]} 4... d6 {[%clk 0:02:19.4]} 5. Nf3 {[%clk 0:02:58.8]}
5... O-O {[%clk 0:02:19.8]} 6. Be2 {[%clk 0:02:59]} 6... Nc6 {[%clk 0:02:20]} 7.
d5 {[%clk 0:02:55.7]} 7... Ne5 {[%clk 0:02:20]} 8. Nxe5 {[%clk 0:02:54.5]} 8...
dxe5 {[%clk 0:02:20.1]} 9. Be3 {[%clk 0:02:52.7]} 9... e6 {[%clk 0:02:20.1]} 10.
O-O {[%clk 0:02:49]} 10... exd5 {[%clk 0:02:20.2]} 11. cxd5 {[%clk 0:02:47.8]}
11... Ne8 {[%clk 0:02:20.2]} 12. f3 {[%clk 0:02:36.4]} 12... Nd6 {[%clk
0:02:19.5]} 13. Rc1 {[%clk 0:02:32.2]} 13... a6 {[%clk 0:02:18.7]} 14. b4 {[%clk
0:02:19.8]} 14... f5 {[%clk 0:02:17.1]} 15. Qb3 {[%clk 0:02:17.3]} 15... h6
{[%clk 0:02:15.8]} 16. Na4 {[%clk 0:02:11]} 16... Kh7 {[%clk 0:02:12.9]} 17. Bc5
{[%clk 0:02:04.5]} 17... Bd7 {[%clk 0:02:08.1]} 18. Bxd6 {[%clk 0:02:00.8]}
18... cxd6 {[%clk 0:02:07.9]} 19. Nb2 {[%clk 0:01:57.3]} 19... Rc8 {[%clk
0:02:07.1]} 20. Nc4 {[%clk 0:01:55.9]} 20... Bb5 {[%clk 0:02:00.7]} 21. a4
{[%clk 0:01:51.1]} 21... Bxc4 {[%clk 0:01:59.8]} 22. Bxc4 {[%clk 0:01:46.4]}
22... Rf7 {[%clk 0:01:59.7]} 23. b5 {[%clk 0:01:40.3]} 23... Qb6+ {[%clk
0:01:55.7]} 24. Kh1 {[%clk 0:01:36.5]} 24... Rfc7 {[%clk 0:01:52.5]} 25. Rc2
{[%clk 0:01:26.2]} 25... a5 {[%clk 0:01:46.7]} 26. Rfc1 {[%clk 0:01:26]} 26...
h5 {[%clk 0:01:45]} 27. Bd3 {[%clk 0:01:25.8]} 27... Rxc2 {[%clk 0:01:44]} 28.
Rxc2 {[%clk 0:01:26.1]} 28... Rxc2 {[%clk 0:01:43.7]} 29. Qxc2 {[%clk
0:01:26.2]} 29... Qe3 {[%clk 0:01:41.9]} 30. Qd1 {[%clk 0:01:12.8]} 30... fxe4
{[%clk 0:01:24.8]} 31. Bxe4 {[%clk 0:01:08.4]} 31... Bh6 {[%clk 0:01:19.2]} 32.
g3 {[%clk 0:01:01.9]} 32... Kg7 {[%clk 0:01:11]} 33. Kg2 {[%clk 0:01:00.9]}
33... b6 {[%clk 0:00:59.8]} 34. Qc2 {[%clk 0:00:59.8]} 34... Qd2+ {[%clk
0:00:58.6]} 35. Qxd2 {[%clk 0:00:57.6]} 35... Bxd2 {[%clk 0:00:57.9]} 36. h4
{[%clk 0:00:54.1]} 36... Kf6 {[%clk 0:00:54.2]} 37. g4 {[%clk 0:00:47.8]} 37...
hxg4 {[%clk 0:00:53.5]} 38. fxg4 {[%clk 0:00:47.9]} 38... Be1 {[%clk 0:00:51.8]}
39. Kh3 {[%clk 0:00:44.7]} 39... Bd2 {[%clk 0:00:47.7]} 40. g5+ {[%clk
0:00:39.9]} 40... Kg7 {[%clk 0:00:46.7]} 41. Kg4 {[%clk 0:00:39.9]} 41... Bc1
{[%clk 0:00:45.4]} 42. h5 {[%clk 0:00:36.8]} 42... gxh5+ {[%clk 0:00:45.2]} 43.
Kxh5 {[%clk 0:00:37.2]} 43... Bf4 {[%clk 0:00:43]} 44. Kg4 {[%clk 0:00:37]}
44... Kf7 {[%clk 0:00:37.7]} 45. Kf5 {[%clk 0:00:36.4]} 45... Bd2 {[%clk
0:00:33.2]} 46. g6+ {[%clk 0:00:36.4]} 46... Ke7 {[%clk 0:00:20.4]} 47. Bf3
{[%clk 0:00:29.4]} 47... Bh6 {[%clk 0:00:18.4]} 48. Bh5 {[%clk 0:00:28]} 48...
Bg7 {[%clk 0:00:16.7]} 49. Bg4 {[%clk 0:00:25.9]} 49... Bh8 {[%clk 0:00:15.4]}
50. Kg5 {[%clk 0:00:24.4]} 50... Bg7 {[%clk 0:00:14.8]} 51. Bf5 {[%clk
0:00:24.3]} 51... Kd8 {[%clk 0:00:12.6]} 52. Be4 {[%clk 0:00:22.8]} 52... Ke7
{[%clk 0:00:13]} 53. Kf5 {[%clk 0:00:23]} 53... Bh8 {[%clk 0:00:11.9]} 54. Kg5
{[%clk 0:00:23.1]} 54... Bg7 {[%clk 0:00:11.5]} 55. Bf5 {[%clk 0:00:23]} 55...
Kd8 {[%clk 0:00:11.1]} 56. Bg4 {[%clk 0:00:21.5]} 56... Ke7 {[%clk 0:00:11.1]}
57. Kf5 {[%clk 0:00:21.6]} 57... Bh8 {[%clk 0:00:10.8]} 58. Bh5 {[%clk
0:00:21.5]} 58... Bg7 {[%clk 0:00:10.8]} 59. Bg4 {[%clk 0:00:21.5]} 1/2-1/2

[Event "Late-Titled-Tuesday-Blitz-March-19-2024"]
[Site "Chess.com"]
[Date "2024.03.19"]
[Round "6"]
[White "Harsha_Bharathakoti"]
[Black "DavidGavrilescu18"]
[Result "1-0"]
[WhiteElo "2950"]
[BlackElo "2764"]
[TimeControl "180+1"]
[EndTime "15:06:11 PDT"]
[Termination "Harsha_Bharathakoti won by resignation"]

1. Nf3 {[%clk 0:03:00.9]} 1... d5 {[%clk 0:02:59.6]} 2. g3 {[%clk 0:02:59.9]}
2... Nf6 {[%clk 0:03:00]} 3. Bg2 {[%clk 0:02:59.9]} 3... e6 {[%clk 0:03:00.9]}
4. O-O {[%clk 0:02:59.9]} 4... Be7 {[%clk 0:03:01.8]} 5. c4 {[%clk 0:03:00.5]}
5... O-O {[%clk 0:03:02.5]} 6. b3 {[%clk 0:03:01.2]} 6... b6 {[%clk 0:03:02.4]}
7. cxd5 {[%clk 0:02:58.6]} 7... Nxd5 {[%clk 0:02:55]} 8. d4 {[%clk 0:02:56.4]}
8... Bb7 {[%clk 0:02:52.9]} 9. Bb2 {[%clk 0:02:56.3]} 9... Nd7 {[%clk
0:02:51.6]} 10. Nbd2 {[%clk 0:02:53.2]} 10... N5f6 {[%clk 0:02:42.6]} 11. Rc1
{[%clk 0:02:50.3]} 11... c5 {[%clk 0:02:42]} 12. Nc4 {[%clk 0:02:50.5]} 12...
cxd4 {[%clk 0:02:40.8]} 13. Nxd4 {[%clk 0:02:47.1]} 13... Bxg2 {[%clk
0:02:40.4]} 14. Kxg2 {[%clk 0:02:48]} 14... Rc8 {[%clk 0:02:40.7]} 15. Qd3
{[%clk 0:02:40.8]} 15... Nc5 {[%clk 0:02:38.9]} 16. Qf3 {[%clk 0:02:40.9]} 16...
Qd5 {[%clk 0:02:36]} 17. Rfd1 {[%clk 0:02:39.4]} 17... Rfd8 {[%clk 0:02:32]} 18.
Nb5 {[%clk 0:02:24.5]} 18... Qxf3+ {[%clk 0:02:31.7]} 19. Kxf3 {[%clk
0:02:25.3]} 19... a6 {[%clk 0:02:27.6]} 20. Nbd6 {[%clk 0:00:55.7]} 20... Rc6
{[%clk 0:02:14.1]} 21. Bxf6 {[%clk 0:00:53.1]} 21... gxf6 {[%clk 0:01:57.9]} 22.
Ne4 {[%clk 0:00:51.1]} 22... Nxe4 {[%clk 0:01:57.1]} 23. Kxe4 {[%clk 0:00:52]}
23... Rdc8 {[%clk 0:01:56.6]} 24. Rd7 {[%clk 0:00:46.3]} 24... f5+ {[%clk
0:01:54]} 25. Kf3 {[%clk 0:00:44.8]} 25... Bf6 {[%clk 0:01:42]} 26. Rcd1 {[%clk
0:00:44.8]} 26... Kf8 {[%clk 0:01:13.4]} 27. Rb7 {[%clk 0:00:28.1]} 27... R8c7
{[%clk 0:00:42.8]} 28. Rxc7 {[%clk 0:00:25.1]} 28... Rxc7 {[%clk 0:00:43.1]} 29.
Nxb6 {[%clk 0:00:25.8]} 29... Rc2 {[%clk 0:00:43]} 30. Nd7+ {[%clk 0:00:08.5]}
30... Ke7 {[%clk 0:00:43.1]} 31. Nxf6 {[%clk 0:00:09.4]} 31... Kxf6 {[%clk
0:00:44]} 32. a4 {[%clk 0:00:09.3]} 32... Rb2 {[%clk 0:00:42.2]} 33. Rd3 {[%clk
0:00:09.2]} 33... a5 {[%clk 0:00:38.5]} 34. h3 {[%clk 0:00:06.8]} 34... Ke5
{[%clk 0:00:38.7]} 35. g4 {[%clk 0:00:06.3]} 35... h6 {[%clk 0:00:32.7]} 36. e3
{[%clk 0:00:06]} 36... f6 {[%clk 0:00:26.1]} 37. Rc3 {[%clk 0:00:05.9]} 37...
fxg4+ {[%clk 0:00:24.2]} 38. hxg4 {[%clk 0:00:06.8]} 38... Kd5 {[%clk
0:00:24.4]} 39. Kg3 {[%clk 0:00:06.6]} 39... Rb1 {[%clk 0:00:21.2]} 40. Kf3
{[%clk 0:00:06.6]} 40... Rb2 {[%clk 0:00:20.4]} 41. Rc7 {[%clk 0:00:06.3]} 41...
Rxb3 {[%clk 0:00:19.3]} 42. Ra7 {[%clk 0:00:07]} 42... Ra3 {[%clk 0:00:16]} 43.
Rxa5+ {[%clk 0:00:07.6]} 43... Kd6 {[%clk 0:00:16.5]} 44. Ra6+ {[%clk
0:00:07.6]} 44... Ke5 {[%clk 0:00:15.6]} 45. Ra5+ {[%clk 0:00:07.4]} 45... Kd6
{[%clk 0:00:16]} 46. Ra8 {[%clk 0:00:08.3]} 46... Ke5 {[%clk 0:00:15.8]} 47. a5
{[%clk 0:00:08.6]} 47... f5 {[%clk 0:00:14.7]} 48. gxf5 {[%clk 0:00:07.7]} 48...
Kxf5 {[%clk 0:00:15.4]} 49. a6 {[%clk 0:00:07.8]} 49... Ra2 {[%clk 0:00:14.7]}
50. a7 {[%clk 0:00:06.6]} 50... Ke5 {[%clk 0:00:15.3]} 51. Kg4 {[%clk
0:00:07.2]} 51... Ke4 {[%clk 0:00:13.1]} 52. Kh5 {[%clk 0:00:07.7]} 52... Rxf2
{[%clk 0:00:05.9]} 53. Re8 {[%clk 0:00:06.3]} 53... Rh2+ {[%clk 0:00:05.8]} 54.
Kg4 {[%clk 0:00:06.2]} 54... Ra2 {[%clk 0:00:06.7]} 55. a8=Q+ {[%clk 0:00:06.2]}
55... Rxa8 {[%clk 0:00:07.2]} 56. Rxa8 {[%clk 0:00:06.7]} 56... Kxe3 {[%clk
0:00:08.1]} 57. Re8 {[%clk 0:00:07]} 57... Kd4 {[%clk 0:00:09]} 58. Rxe6 {[%clk
0:00:07.4]} 58... Kd5 {[%clk 0:00:09.9]} 59. Rxh6 {[%clk 0:00:08.1]} 59... Ke5
{[%clk 0:00:10.8]} 60. Rh5+ {[%clk 0:00:08]} 1-0

[Event "Late-Titled-Tuesday-Blitz-March-19-2024"]
[Site "Chess.com"]
[Date "2024.03.19"]
[Round "6"]
[White "Bala-Afiada"]
[Black "Janh4"]
[Result "1/2-1/2"]
[WhiteElo "1872"]
[BlackElo "2148"]
[TimeControl "180+1"]
[EndTime "15:06:17 PDT"]
[Termination "Game drawn by repetition"]

1. d4 {[%clk 0:03:00.9]} 1... d5 {[%clk 0:02:59.8]} 2. c4 {[%clk 0:03:01]} 2...
e6 {[%clk 0:02:59.5]} 3. Nf3 {[%clk 0:03:00.2]} 3... Nf6 {[%clk 0:02:58.7]} 4.
g3 {[%clk 0:03:00.5]} 4... Be7 {[%clk 0:02:58.7]} 5. Qc2 {[%clk 0:02:59.8]} 5...
O-O {[%clk 0:02:58.3]} 6. Bg2 {[%clk 0:03:00.2]} 6... b6 {[%clk 0:02:56.3]} 7.
Ne5 {[%clk 0:02:59.4]} 7... Bb7 {[%clk 0:02:55.7]} 8. O-O {[%clk 0:02:57.1]}
8... c5 {[%clk 0:02:52.2]} 9. cxd5 {[%clk 0:02:51]} 9... exd5 {[%clk 0:02:48.4]}
10. Rd1 {[%clk 0:02:45.8]} 10... Nbd7 {[%clk 0:02:44.6]} 11. Nxd7 {[%clk
0:02:35.1]} 11... Qxd7 {[%clk 0:02:40.8]} 12. Nc3 {[%clk 0:02:35.7]} 12... Rac8
{[%clk 0:02:28.6]} 13. Qa4 {[%clk 0:02:31.5]} 13... Bc6 {[%clk 0:02:12.2]} 14.
Qb3 {[%clk 0:02:24.2]} 14... c4 {[%clk 0:02:10.5]} 15. Qc2 {[%clk 0:02:19.3]}
15... b5 {[%clk 0:02:08]} 16. a3 {[%clk 0:02:19.3]} 16... a5 {[%clk 0:02:07.4]}
17. Bf4 {[%clk 0:02:02.1]} 17... b4 {[%clk 0:01:58.3]} 18. axb4 {[%clk
0:02:01.8]} 18... axb4 {[%clk 0:01:58.6]} 19. Nb1 {[%clk 0:01:52.9]} 19... Ra8
{[%clk 0:01:52.6]} 20. Rxa8 {[%clk 0:01:45.3]} 20... Rxa8 {[%clk 0:01:51.9]} 21.
Nd2 {[%clk 0:01:21.2]} 21... Ra2 {[%clk 0:01:39]} 22. Qb1 {[%clk 0:01:18.5]}
22... Ra6 {[%clk 0:01:24.1]} 23. e4 {[%clk 0:01:11.3]} 23... c3 {[%clk
0:00:29.1]} 24. bxc3 {[%clk 0:01:03.4]} 24... bxc3 {[%clk 0:00:29.3]} 25. Qb8+
{[%clk 0:00:55.8]} 25... Bf8 {[%clk 0:00:26.8]} 26. Nb3 {[%clk 0:00:28.9]} 26...
Qb7 {[%clk 0:00:15.1]} 27. Qxb7 {[%clk 0:00:25.9]} 27... Bxb7 {[%clk 0:00:15.2]}
28. e5 {[%clk 0:00:17.7]} 28... Nd7 {[%clk 0:00:12.4]} 29. Rc1 {[%clk
0:00:17.7]} 29... g6 {[%clk 0:00:05.7]} 30. Bh3 {[%clk 0:00:17.5]} 30... Nb6
{[%clk 0:00:04.5]} 31. Rxc3 {[%clk 0:00:14.3]} 31... Nc4 {[%clk 0:00:04.7]} 32.
Nc5 {[%clk 0:00:11.3]} 32... Ra1+ {[%clk 0:00:04.2]} 33. Kg2 {[%clk 0:00:11.1]}
33... Bc6 {[%clk 0:00:03.1]} 34. Rc1 {[%clk 0:00:09.7]} 34... Rxc1 {[%clk
0:00:01.5]} 35. Bxc1 {[%clk 0:00:08.5]} 35... Nxe5 {[%clk 0:00:01.8]} 36. dxe5
{[%clk 0:00:08.1]} 36... Bxc5 {[%clk 0:00:02.1]} 37. f4 {[%clk 0:00:08.4]} 37...
d4+ {[%clk 0:00:02.8]} 38. Kf1 {[%clk 0:00:08.8]} 38... d3 {[%clk 0:00:03.2]}
39. Ke1 {[%clk 0:00:09.2]} 39... Be4 {[%clk 0:00:03.6]} 40. Kd2 {[%clk
0:00:09.5]} 40... Bb4+ {[%clk 0:00:04.3]} 41. Ke3 {[%clk 0:00:09.8]} 41... Bf5
{[%clk 0:00:03.6]} 42. Bf1 {[%clk 0:00:09.5]} 42... d2 {[%clk 0:00:03.7]} 43.
Bxd2 {[%clk 0:00:09.9]} 43... Bc5+ {[%clk 0:00:04]} 44. Ke2 {[%clk 0:00:09.1]}
44... Bg1 {[%clk 0:00:04.9]} 45. h3 {[%clk 0:00:08.6]} 45... Be4 {[%clk
0:00:04.5]} 46. Be3 {[%clk 0:00:07.5]} 46... Bxe3 {[%clk 0:00:03.6]} 47. Kxe3
{[%clk 0:00:07.8]} 47... Bd5 {[%clk 0:00:04.2]} 48. Bd3 {[%clk 0:00:08.1]} 48...
Kg7 {[%clk 0:00:03.9]} 49. Kd4 {[%clk 0:00:08.7]} 49... Be6 {[%clk 0:00:04.3]}
50. Bc4 {[%clk 0:00:07.7]} 50... Bxh3 {[%clk 0:00:03.9]} 51. Kd5 {[%clk
0:00:06.6]} 51... Be6+ {[%clk 0:00:04]} 52. Kd4 {[%clk 0:00:07.1]} 52... Bg4
{[%clk 0:00:03.9]} 53. Bd5 {[%clk 0:00:06.9]} 53... Bf5 {[%clk 0:00:04.1]} 54.
Be4 {[%clk 0:00:07.1]} 54... Be6 {[%clk 0:00:04.5]} 55. Bd5 {[%clk 0:00:06.7]}
55... Bf5 {[%clk 0:00:05.1]} 56. Be4 {[%clk 0:00:07.2]} 56... Be6 {[%clk
0:00:05.7]} 57. Bd5 {[%clk 0:00:07.6]} 57... Bf5 {[%clk 0:00:06.3]} 1/2-1/2

[Event "Late-Titled-Tuesday-Blitz-March-19-2024"]
[Site "Chess.com"]
[Date "2024.03.19"]
[Round "6"]
[White "bulletteemo"]
[Black "Balla_Tamas"]
[Result "0-1"]
[WhiteElo "2593"]
[BlackElo "2407"]
[TimeControl "180+1"]
[EndTime "15:06:19 PDT"]
[Termination "Balla_Tamas won by resignation"]

1. e4 {[%clk 0:03:00.9]} 1... c5 {[%clk 0:02:57.5]} 2. Nf3 {[%clk 0:03:00.8]}
2... Nc6 {[%clk 0:02:56.7]} 3. d4 {[%clk 0:03:01.2]} 3... cxd4 {[%clk
0:02:52.9]} 4. Nxd4 {[%clk 0:03:02.1]} 4... e5 {[%clk 0:02:52.9]} 5. Nb5 {[%clk
0:03:02]} 5... d6 {[%clk 0:02:53.3]} 6. c4 {[%clk 0:03:02.3]} 6... Be7 {[%clk
0:02:52.3]} 7. Be2 {[%clk 0:03:01.7]} 7... f5 {[%clk 0:02:50]} 8. exf5 {[%clk
0:03:00.9]} 8... Bxf5 {[%clk 0:02:49.7]} 9. O-O {[%clk 0:03:00.9]} 9... Nf6
{[%clk 0:02:49.6]} 10. Bg5 {[%clk 0:02:58.5]} 10... O-O {[%clk 0:02:47.1]} 11.
Nd2 {[%clk 0:02:56.1]} 11... a6 {[%clk 0:02:46.3]} 12. Nc3 {[%clk 0:02:55.9]}
12... Nd4 {[%clk 0:02:46.5]} 13. Nf3 {[%clk 0:02:53.8]} 13... Nxe2+ {[%clk
0:02:32.3]} 14. Qxe2 {[%clk 0:02:47.2]} 14... Bg4 {[%clk 0:02:31.9]} 15. Rad1
{[%clk 0:02:38]} 15... Nd7 {[%clk 0:02:29.8]} 16. Bxe7 {[%clk 0:02:34.4]} 16...
Qxe7 {[%clk 0:02:30.7]} 17. Rd3 {[%clk 0:02:32.5]} 17... Nc5 {[%clk 0:02:26.6]}
18. Re3 {[%clk 0:02:31.8]} 18... Rae8 {[%clk 0:02:18.4]} 19. h3 {[%clk
0:02:30.7]} 19... Bh5 {[%clk 0:02:18.2]} 20. g4 {[%clk 0:02:28.4]} 20... Bg6
{[%clk 0:02:15.9]} 21. b4 {[%clk 0:02:27.8]} 21... Ne6 {[%clk 0:02:14.8]} 22.
Nd5 {[%clk 0:02:27.4]} 22... Qf7 {[%clk 0:02:08.5]} 23. c5 {[%clk 0:02:24]}
23... dxc5 {[%clk 0:02:02.9]} 24. Nxe5 {[%clk 0:02:22.8]} 24... Nd4 {[%clk
0:01:41]} 25. Nxf7 {[%clk 0:01:16.8]} 25... Nxe2+ {[%clk 0:01:39.7]} 26. Kh2
{[%clk 0:01:13.5]} 26... Rxe3 {[%clk 0:01:17.9]} 27. Nxe3 {[%clk 0:01:09.6]}
27... Rxf7 {[%clk 0:01:11.1]} 28. bxc5 {[%clk 0:01:09.7]} 28... Be4 {[%clk
0:01:08.6]} 29. Nc4 {[%clk 0:01:00.2]} 29... Bc6 {[%clk 0:00:51.7]} 30. Ne5
{[%clk 0:00:49.5]} 30... Rf6 {[%clk 0:00:29.1]} 31. f3 {[%clk 0:00:46]} 31...
Nd4 {[%clk 0:00:27.9]} 32. Kg3 {[%clk 0:00:45.5]} 32... Re6 {[%clk 0:00:27]} 33.
f4 {[%clk 0:00:41.5]} 33... Ne2+ {[%clk 0:00:27.2]} 34. Kh2 {[%clk 0:00:40.2]}
34... Nd4 {[%clk 0:00:18.3]} 35. Kg3 {[%clk 0:00:32.3]} 35... g5 {[%clk
0:00:18.3]} 36. Nxc6 {[%clk 0:00:27.6]} 36... gxf4+ {[%clk 0:00:18.1]} 37. Kxf4
{[%clk 0:00:21.7]} 37... Nxc6 {[%clk 0:00:14.7]} 38. Rd1 {[%clk 0:00:20.6]}
38... Kf7 {[%clk 0:00:09.6]} 39. a3 {[%clk 0:00:20.4]} 39... Re5 {[%clk
0:00:09.2]} 40. Rd7+ {[%clk 0:00:19.4]} 40... Re7 {[%clk 0:00:09.6]} 41. Rd6
{[%clk 0:00:19.7]} 41... Ne5 {[%clk 0:00:09.7]} 42. h4 {[%clk 0:00:18.4]} 42...
Ng6+ {[%clk 0:00:10]} 43. Kg3 {[%clk 0:00:16.7]} 43... Re3+ {[%clk 0:00:10.3]}
44. Kf2 {[%clk 0:00:17.2]} 44... Rxa3 {[%clk 0:00:10.3]} 45. Rd7+ {[%clk
0:00:17.1]} 45... Kf6 {[%clk 0:00:10.7]} 46. h5 {[%clk 0:00:16.9]} 46... Ne5
{[%clk 0:00:10.2]} 47. Rxh7 {[%clk 0:00:14.6]} 47... Nxg4+ {[%clk 0:00:10.5]}
48. Ke2 {[%clk 0:00:15.2]} 48... Rb3 {[%clk 0:00:10.6]} 49. Rh8 {[%clk
0:00:12.5]} 49... Kg5 {[%clk 0:00:10.6]} 50. Kd2 {[%clk 0:00:11.9]} 50... Rh3
{[%clk 0:00:09.7]} 51. Rh7 {[%clk 0:00:10.7]} 51... Rb3 {[%clk 0:00:08.7]} 52.
Kc2 {[%clk 0:00:10.5]} 52... Rb5 {[%clk 0:00:08.9]} 53. Kd3 {[%clk 0:00:08.8]}
53... Rxc5 {[%clk 0:00:08.8]} 54. Rxb7 {[%clk 0:00:08.8]} 54... Kxh5 {[%clk
0:00:09.3]} 55. Kd4 {[%clk 0:00:09.1]} 55... Rg5 {[%clk 0:00:08.8]} 56. Rh7+
{[%clk 0:00:08.5]} 56... Kg6 {[%clk 0:00:09]} 57. Ra7 {[%clk 0:00:09.3]} 57...
a5 {[%clk 0:00:09.3]} 58. Ra6+ {[%clk 0:00:10.1]} 58... Kh5 {[%clk 0:00:09.3]}
59. Kc4 {[%clk 0:00:10.7]} 59... Ne5+ {[%clk 0:00:08.3]} 60. Kb3 {[%clk
0:00:11.1]} 60... Nd7 {[%clk 0:00:08.1]} 61. Ka4 {[%clk 0:00:11]} 61... Nc5+
{[%clk 0:00:08.4]} 0-1